Cogmind - Beta 15 @@@ ROGUE MODE // 2025.06.21 @ 22:48:46 Player: Man of Plasma Result: Destroyed by G-67 Veteran with Field Laser Performance ------------- Evolutions (7) 3500 Regions Visited (18) 3600 Robots Destroyed (116) 580 Value Destroyed (3565) 3565 Prototype IDs (49) 980 Alien Tech Used (0) 0 Bonus (1638) 1638 TOTAL SCORE: 13863 Bonus ------- Follower Combat Kills 70 Aligned with FarCom 300 Met Imprinter 300 Met Warlord at Base 500 MAIN.C Attacked Warlord 500 Friendly Fire -32 Cogmind --------- Core Integrity 0/1300 Matter 183/300 Energy 98/100 System Corruption 19% Temperature Cool (15) Movement Flying (32) Location -3/Research Parts ------- > --- POWER (3) -------- (None) > --- PROPULSION (6) --- Gyrokinetic Inverter Cooled Impulse Thruster > --- UTILITY (9) ------ Advanced Terrain Scan Processor > --- WEAPON (3) ------- (None) > --- INVENTORY (5) ---- Gyrokinetic Inverter Advanced Force Field Gravity Flail Peak State ------------ > --- POWER ------------ Enhanced Fission Core Micro Fission Core > --- PROPULSION ------- Improved Gyrokinetic Inverter Improved Gyrokinetic Inverter Combat Antigrav System Combat Antigrav System Combat Antigrav System Electron Diverter > --- UTILITY ---------- Large Storage Unit Experimental Signal Interpreter Advanced Terrain Scanner Advanced Terrain Scan Processor Advanced Terrain Scan Processor Melee Analysis Suite Improved Propulsion Shielding Hacking Suite Improved System Shield > --- WEAPON ----------- Matter Neutralizer Hypervelocity Mass Driver Lance > --- INVENTORY -------- Gyrokinetic Inverter Gyrokinetic Inverter Impulse Thruster Cooled Impulse Thruster Advanced Force Field Vortex Cannon Linear Accelerator [Rating: 121] Favorites ----------- Power Micro Fission Core Engine Improved Deuterium Engine Power Core Micro Fission Core Propulsion VTOL Module Treads Light Treads Leg Improved Carbon-fiber Leg Wheel Armored Huge Wheel Hover Unit Improved Gyrokinetic Inverter Flight Unit VTOL Module Utility Large Storage Unit Device Advanced Weight Redist. System Storage Large Storage Unit Processor Experimental Signal Interpreter Hackware Hacking Suite Protection Improved Light Armor Plating Weapon Longsword +1 Energy Gun Medium Laser Energy Cannon Heavy Particle Cannon Ballistic Gun Light Assault Rifle Ballistic Cannon Assault Cannon Launcher Grenade Launcher Impact Weapon Gravity Flail Slashing Weapon Longsword +1 Piercing Weapon Lance Special Melee Weapon Improved Datajack Build | -11 -10 -10 -10 -9 -8 -7 -7 -7 -7 -6 -6 -5 -5 -5 -5 -4 -4 -3 ------- Run | Yrd Mat Min Exi Min Mat Fac Low Low Zio Pro Fac Fac Upp Upp War Pro Fac Res Slots Evolved 14 | . . . . . 4 2 . . . . 2 2 . . . . 2 2 Power 2 | . . . . . . . . . . . . 1 . . . . . 1 Propulsion 4 | . . . . . 1 1 . . . . 1 . . . . . 1 . Utility 7 | . . . . . 2 1 . . . . 1 1 . . . . 1 1 Weapon 1 | . . . . . 1 . . . . . . . . . . . . . Parts Attached 163 | 7 7 1 . . 35 7 4 5 10 5 15 17 . 3 2 4 23 18 Power 16 | 1 1 1 . . 2 1 . 2 1 . 1 2 . . . 1 1 2 Engine 7 | 1 1 . . . 1 1 . 1 1 . . . . . . . . 1 Core 9 | . . 1 . . 1 . . 1 . . 1 2 . . . 1 1 1 Reactor . | . . . . . . . . . . . . . . . . . . . Propulsion 56 | 2 2 . . . 11 1 1 1 3 2 2 6 . 2 1 3 11 8 Treads 11 | 2 2 . . . 6 . . . . . . . . . . . 1 . Leg 5 | . . . . . 4 . . . . . . . . . . . 1 . Wheel 5 | . . . . . 1 1 1 1 . . . . . . . . . 1 Hover 7 | . . . . . . . . . . . . . . . . . 3 4 Flight 28 | . . . . . . . . . 3 2 2 6 . 2 1 3 6 3 Utility 54 | 2 2 . . . 7 4 2 . 6 3 8 6 . . . . 10 4 Device 15 | 1 1 . . . 3 . . . . 2 2 3 . . . . 1 2 Storage 6 | 1 . . . . 1 . . . . 1 2 . . . . . . 1 Processor 18 | . 1 . . . 1 . 1 . 5 . 2 1 . . . . 7 . Hackware 9 | . . . . . 1 1 1 . 1 . 1 2 . . . . 1 1 Protection 6 | . . . . . 1 3 . . . . 1 . . . . . 1 . Artifact . | . . . . . . . . . . . . . . . . . . . Weapon 37 | 2 2 . . . 15 1 1 2 . . 4 3 . 1 1 . 1 4 Energy Gun 11 | 1 . . . . 9 . . . . . 1 . . . . . . . Energy Cannon 6 | . . . . . 2 . . 1 . . . 1 . . 1 . . 1 Ballistic Gun 5 | 1 . . . . . 1 . . . . 1 2 . . . . . . Ballistic Cannon 7 | . 1 . . . 3 . . . . . 1 . . . . . . 2 Launcher 3 | . 1 . . . 1 . 1 . . . . . . . . . . . Special Weapon . | . . . . . . . . . . . . . . . . . . . Impact Weapon 1 | . . . . . . . . . . . . . . . . . . 1 Slashing Weapon 1 | . . . . . . . . 1 . . . . . . . . . . Piercing Weapon 1 | . . . . . . . . . . . . . . . . . 1 . Special Melee Weapon 2 | . . . . . . . . . . . 1 . . 1 . . . . Unidentified Prototypes 20 | . . . . . 4 1 . . 5 1 2 1 . . 1 . 1 4 Parts Lost 85 | . . 1 . . 11 2 8 1 . 2 2 4 . . 2 5 23 24 Power 10 | . . . . . 1 . 1 . . 1 . . . . . 1 3 3 Propulsion 35 | . . . . . 4 . 2 . . . 2 3 . . 1 3 13 7 Utility 21 | . . . . . 1 1 1 1 . 1 . 1 . . 1 1 5 8 Weapon 19 | . . 1 . . 5 1 4 . . . . . . . . . 2 6 Highest Loss Streak 24 | . . 1 . . 2 1 4 1 . 1 2 4 . . 2 4 12 24 To Critical Strikes . | . . . . . . . . . . . . . . . . . . . Average Backups 10 | 1 6 7 8 8 9 12 11 10 13 14 14 14 14 14 13 14 7 3 Power 1 | . 1 1 1 1 1 1 . 1 2 1 . 1 1 1 1 2 . . Propulsion 1 | . 2 3 3 3 1 2 1 1 1 . . . 1 1 . . . 1 Utility 5 | . . 1 2 2 3 6 7 8 10 10 8 7 7 7 7 7 4 . Weapon 2 | . 2 2 2 2 3 2 1 . . 1 3 4 4 4 4 5 2 1 Tool/Special . | . . . . . . . . . . . . . . . . . . . Unused Backups 25 | . . . 1 . . 2 . . 1 1 8 2 . . . . 8 2 Power 5 | . . . . . . 1 . . . 1 1 1 . . . . 1 . Propulsion 3 | . . . . . . 1 . . . . 1 . . . . . . 1 Utility 12 | . . . . . . . . . 1 . 5 . . . . . 5 1 Weapon 5 | . . . 1 . . . . . . . 1 1 . . . . 2 . Tool/Special . | . . . . . . . . . . . . . . . . . . . Average Slot Usage (%) 82 | . 100 100 100 100 92 80 75 72 75 69 88 72 82 82 88 71 53 66 Engine 3 | . 14 3 . . 2 7 6 4 7 1 . . . . . . . . Core 4 | . . 10 14 14 6 . . 2 . 5 5 5 11 11 11 10 4 4 Treads 7 | . 28 28 28 28 14 . . . . . . . . . . . 2 . Leg 1 | . . . . . 8 . . . . . . . . . . . . . Wheel 4 | . . . . . 1 14 13 14 8 . . . . . . . . . Hover 1 | . . . . . . . . . . . . . . . . . 1 17 Flight 7 | . . . . . . . . . 10 26 32 25 23 23 23 20 9 2 Device 5 | . 14 . . . 9 6 . . . 7 8 5 5 5 5 5 3 2 Storage 7 | . 14 14 14 14 9 7 7 7 7 7 6 5 5 5 5 5 3 2 Processor 9 | . . 14 14 14 9 . . 7 7 7 13 14 17 17 17 11 17 18 Hackware 8 | . . . . . 5 12 21 15 20 11 6 7 11 11 11 9 1 5 Protection 2 | . . . . . . 7 8 6 1 . 3 . . . . . . 1 Energy Gun 4 | . 13 14 14 14 9 3 . . . . . . . . . . . . Energy Cannon 2 | . . . . . 2 7 4 3 3 . . . . . . . 2 2 Ballistic Gun 2 | . . 13 14 14 1 5 5 . . . . . . . . . . . Ballistic Cannon 3 | . 12 . . . 10 3 4 . . . . . . . . . . 1 Slashing Weapon 2 | . . . . . . . . 6 7 1 5 4 5 5 5 3 . . Peak Build Rating 121 | 9 9 10 10 10 37 49 49 49 62 49 61 76 75 79 86 70 73 121 Average Rating 41 | 5 7 9 10 10 26 46 43 46 50 38 55 56 75 76 79 62 48 81 On Entrance 39 | . 9 7 10 10 10 37 48 29 49 46 36 43 75 75 79 70 61 52 Naked Turns . | . . . . . . . . . . . . . . . . . . . Heaviest Build 66 | 14 17 13 13 13 44 50 50 43 43 29 35 33 33 34 43 39 40 66 Greatest Support 72 | 40 40 40 40 40 60 56 56 56 56 27 34 34 34 34 34 34 34 72 Greatest Overweight (x) 8 | . . . . . 2 1 1 1 2 1 1 2 . . 1 1 8 1 Average Overweight (x) . | . . . . . . . . . . . . . . . . . . . Largest Inventory Capacity 15 | 8 8 8 8 8 15 15 15 15 15 15 15 15 15 15 15 15 15 15 Average Capacity 13 | 7 8 8 8 8 14 15 15 15 15 15 15 15 15 15 15 15 11 12 Most Carried 15 | 3 8 8 8 8 15 15 15 12 15 15 15 15 14 15 15 15 15 7 Average Carried 10 | 1 6 7 8 8 10 14 13 10 13 14 14 14 14 14 13 14 7 3 Final Capacity 15 | 8 8 8 8 8 15 15 15 15 15 15 15 15 15 15 15 15 5 5 Final Carried 15 | 2 8 8 8 8 15 14 12 12 15 14 15 14 14 14 14 14 5 3 Class Distribution -------------------- 31% | Mutant 21% | Hacker-Mutant 18% | Scavenger-Sprinter 13% | Skirmisher 5% | Hacker-Skirmisher Dominant Class ---------------- Mutant | -10/Materials Mutant | -10/Mines Mutant | -10/Exiles Mutant | -9/Mines Skirmisher | -8/Materials Hacker-Skirmisher | -7/Factory Hacker-Tank | -7/Lower Caves Hacker-Mutant | -7/Lower Caves Hacker-Mutant | -7/Zion Derelict-Sprinter | -6/Proximity Caves Scavenger-Sprinter | -6/Factory Scavenger-Sprinter | -5/Factory Scavenger-Sprinter | -5/Upper Caves Scavenger-Sprinter | -5/Upper Caves Scavenger-Sprinter | -5/Warlord Hacker-Sprinter | -4/Proximity Caves Mutant | -4/Factory Scout | -3/Research Resources | -11 -10 -10 -10 -9 -8 -7 -7 -7 -7 -6 -6 -5 -5 -5 -5 -4 -4 -3 ----------- Run | Yrd Mat Min Exi Min Mat Fac Low Low Zio Pro Fac Fac Upp Upp War Pro Fac Res Matter Collected 3231 | 274 288 60 . . 633 576 160 72 110 48 221 352 5 55 20 42 170 145 Remotely . | . . . . . . . . . . . . . . . . . . . Salvage Created 3971 | 95 246 165 . . 932 600 . 188 . 44 179 375 . 190 . 72 670 215 Parts 210 | 7 17 5 . . 51 29 . 17 . 4 4 21 . 11 . 7 27 10 Haulers Intercepted 4 | . 1 . . . . 1 . . . . 1 1 . . . . . . Recyclers Shooed 4 | . . . . . 2 . . . . . . . . . . . . 2 Parts Field Recycled . | . . . . . . . . . . . . . . . . . . . Retrieved Matter . | . . . . . . . . . . . . . . . . . . . Parts Self-Destructed 34 | . . . . . . . . 14 1 2 . . . 14 . 3 . . Prevented . | . . . . . . . . . . . . . . . . . . . Kills | -11 -10 -10 -10 -9 -8 -7 -7 -7 -7 -6 -6 -5 -5 -5 -5 -4 -4 -3 ------- Run | Yrd Mat Min Exi Min Mat Fac Low Low Zio Pro Fac Fac Upp Upp War Pro Fac Res Combat Hostiles Destroyed 84 | . 11 4 . . 28 7 . 7 . 2 . 6 . 4 . 3 10 2 Melee 32 | . . . . . 1 . . 7 . 2 . 6 . 4 . 3 8 1 Guns 25 | . 3 4 . . 15 3 . . . . . . . . . . . . Cannons 20 | . 4 . . . 9 4 . . . . . . . . . . 2 1 AOE 6 | . 4 . . . 2 . . . . . . . . . . . . . Classes Destroyed 14 | 2 5 . . . 5 1 . . . . . 1 . . . . . . Worker 4 | . . . . . 3 1 . . . . . . . . . . . . Builder 3 | . 1 . . . 1 1 . . . . . . . . . . . . Tunneler 2 | 2 . . . . . . . . . . . . . . . . . . Hauler 4 | . 1 . . . . 1 . . . . 1 1 . . . . . . Recycler 4 | 1 . . . . . 1 . . . . . . . . . . 2 . Mechanic 3 | . . . . . 1 1 . . . . . . . . . . 1 . Operator 5 | . . . . . . . . . . . . 2 . . . . 1 2 Watcher 7 | . 2 . . . . 2 . . . . 3 . . . . . . . Swarmer 39 | . 6 . . . 7 . . 6 . 2 . 5 . 2 . 3 8 . Grunt 26 | . 5 4 . . 14 2 . . . . . . . 1 . . . . Duelist 1 | . . . . . 1 . . . . . . . . . . . . . Sentry 11 | . . . . . 5 2 . . . . . 1 . 1 . . 2 . Hunter 3 | . . . . . 1 1 . . . . . . . . . . . 1 Programmer 4 | . . . . . . 2 . 1 . . . . . . . . . 1 Best Kill Streak 10 | 3 6 2 . . 8 3 . 5 . 1 2 4 . 2 . 3 10 1 Combat Bots Only 9 | . 5 2 . . 7 2 . 5 . 1 . 4 . 2 . 3 9 1 Max Kills in Single Turn 2 | 1 2 1 . . 2 2 . 1 . 1 1 1 . 1 . 1 1 1 Gunslinging . | . . . . . . . . . . . . . . . . . . . Exploded 2 | . 1 . . . 2 . . . . . . . . . . . . . Melee 1 | . . . . . 1 . . 1 . 1 . 1 . 1 . 1 1 1 Uniques/NPCs Destroyed . | . . . . . . . . . . . . . . . . . . . Combat | -11 -10 -10 -10 -9 -8 -7 -7 -7 -7 -6 -6 -5 -5 -5 -5 -4 -4 -3 -------- Run | Yrd Mat Min Exi Min Mat Fac Low Low Zio Pro Fac Fac Upp Upp War Pro Fac Res Hostile Shots Fired 1234 | . 79 30 . . 168 102 80 34 . 33 29 29 . 11 12 46 259 322 Missed 424 | . 24 7 . . 41 34 26 7 . 16 18 9 . 3 7 19 100 113 Hits 810 | . 55 23 . . 127 68 54 27 . 17 11 20 . 8 5 27 159 209 Melee 12 | . . . . . 9 . . . . . 2 . . . 1 . . . Projectile 798 | . 55 23 . . 118 68 54 27 . 17 9 20 . 8 4 27 159 209 AOE 5 | . . . . . . . . . . . 2 . . . 3 . . . Critical Strikes 20 | . . . . . 4 . . . . . 1 . . . 1 . 4 10 Actively Blocked 1 | . . . . . . . . . . . 1 . . . . . . . Part Disruptions 1 | . . . . . . . . . . . . . . . . . . 1 Damage Taken 13042 | . 578 297 . . 1978 605 1102 404 . 266 213 307 . 119 198 467 2576 3932 Core 3611 | . 66 30 . . 239 48 156 74 . 118 116 124 . 57 81 127 1068 1307 Absorbed by Shields 55 | . . . . . . . . . . . . . . . 55 . . . Redirected to Shielding 251 | . . . . . . 26 77 . . . 44 . . . . . . 104 Regen/Repaired (Parts) 280 | . . . . . 49 144 . . . . 43 44 . . . . . . Core Remaining (%) 59 | 100 . . . 61 56 . . . . 43 86 . . . . 61 7 . Volleys Fired 224 | 4 41 17 . . 81 37 20 . . . . 2 . . 1 3 11 7 Largest 3 | 2 2 2 . . 3 3 3 . . . . 2 . . 1 1 1 2 Hottest 168 | 70 80 70 . . 168 158 151 . . . . 68 . . 90 90 90 161 Shots Fired 492 | 8 81 31 . . 213 91 35 1 . . . 4 . . 1 3 13 11 Gun 253 | 8 38 31 . . 117 39 18 . . . . 2 . . . . . . Cannon 217 | . 36 . . . 92 52 6 1 . . . 2 . . 1 3 13 11 Launcher 22 | . 7 . . . 4 . 11 . . . . . . . . . . . Special . | . . . . . . . . . . . . . . . . . . . Kinetic 218 | 4 36 14 . . 90 43 20 . . . . 4 . . . . . 7 Thermal 215 | 4 38 17 . . 88 48 4 . . . . . . . 1 3 8 4 Explosive 11 | . 7 . . . 4 . . . . . . . . . . . . . Electromagnetic 43 | . . . . . 31 . 11 1 . . . . . . . . . . Entropic 5 | . . . . . . . . . . . . . . . . . 5 . Robot Hit Streak 16 | 6 11 10 . . 12 16 8 . . . . 1 . . . . 6 2 Robot Miss Streak 7 | . 6 7 . . 5 4 2 . . . . 3 . . 1 . 3 3 Penetration Max 1 | . . . . . . 1 . . . . . . . . . . . . Secondary Targets 3 | . . . . . 3 . . . . . . . . . . . . . Max Gunslinging Chain 1 | . . . . . 1 . . . . . . . . . . . . . Shots Hit Robots 405 | 6 41 24 . . 133 57 24 11 . 5 5 20 . 10 17 6 27 19 Core Hits 166 | 5 18 11 . . 58 24 4 5 . 2 4 9 . 3 . 3 14 6 Critical Kills 2 | . . . . . 1 . . . . . . . . . . . . 1 Critical Parts Destroyed 3 | . . . . . . . . . . . . 1 . . . . . 2 Critical Strikes 32 | 1 8 . . . 5 . . . . 2 . 2 . 1 . 1 6 6 Burn 10 | 1 7 . . . 2 . . . . . . . . . . . . . Destroy 5 | . . . . . 1 . . . . . . 1 . . . . . 3 Blast 3 | . 1 . . . 2 . . . . . . . . . . . . . Sever 8 | . . . . . . . . . . 2 . 1 . 1 . 1 3 . Impale 6 | . . . . . . . . . . . . . . . . . 3 3 Melee Attacks 119 | . . . . . . . . 13 . 5 5 19 . 11 18 6 23 19 Impact 3 | . . . . . . . . . . . . . . . . . . 3 Slashing 64 | . . . . . . . . 13 . 5 5 19 . 7 1 6 8 . Piercing 31 | . . . . . . . . . . . . . . . . . 15 16 Sneak Attacks 23 | . . . . . . . . . . . 1 2 . 1 16 . 2 1 Combat Hostiles 4 | . . . . . . . . . . . . . . 1 3 . . . Follow-up Attacks . | . . . . . . . . . . . . . . . . . . . Damage Inflicted 11279 | 64 892 265 . . 3189 1450 475 521 . 220 319 1100 . 375 32 289 1276 812 Guns 2632 | 64 262 261 . . 1278 569 182 . . . . 16 . . . . . . Cannons 2816 | . 273 . . . 1186 837 104 . . . . . . . 32 . 277 107 Explosions 1254 | . 357 . . . 708 . 189 . . . . . . . . . . . Melee 4474 | . . . . . . . . 521 . 220 319 1084 . 375 . 289 997 669 Ramming 103 | . . 4 . . 17 44 . . . . . . . . . . 2 36 Kinetic 2334 | 14 273 100 . . 992 638 232 . . . . 16 . . . . . 69 Thermal 2626 | 50 262 161 . . 1109 768 54 . . . . . . . 32 . 152 38 Explosive 1065 | . 357 . . . 708 . . . . . . . . . . . . . Electromagnetic 552 | . . . . . 363 . 189 . . . . . . . . . . . Impact 103 | . . . . . . . . . . . . . . . . . . 103 Slashing 3239 | . . . . . . . . 521 . 220 319 1084 . 375 . 289 431 . Piercing 1132 | . . . . . . . . . . . . . . . . . 566 566 Entropic 125 | . . . . . . . . . . . . . . . . . 125 . Highest Corruption 19 | . . . . . . 1 1 2 2 . 1 . . . 3 3 2 19 Average Corruption 2 | . . . . . . 1 1 1 2 . 1 . . . 3 3 2 11 Corruption Purged . | . . . . . . . . . . . . . . . . . . . Corruption Blocked . | . . . . . . . . . . . . . . . . . . . Effects 41 | . . . . . . 4 4 11 1 . 4 . . . . 4 3 10 Message Errors 10 | . . . . . . 1 2 4 . . . . . . . 1 . 2 Matter Fused 11 | . . . . . . 3 . . 1 . 3 . . . . 1 1 2 Heat Flow Errors 2 | . . . . . . . . 1 . . . . . . . . . 1 Energy Discharges 3 | . . . . . . . . 1 . . 1 . . . . 1 . . Parts Rejected 1 | . . . . . . . . . . . . . . . . . . 1 Parts Fused 2 | . . . . . . . . 1 . . . . . . . 1 . . Data Loss (minor) 4 | . . . . . . . 1 2 . . . . . . . . . 1 Data Loss (major) 1 | . . . . . . . 1 . . . . . . . . . . . Misfires 3 | . . . . . . . . 1 . . . . . . . . 2 . Alerts 1 | . . . . . . . . 1 . . . . . . . . . . Misdirections 3 | . . . . . . . . . . . . . . . . . . 3 Overload Shots . | . . . . . . . . . . . . . . . . . . . Overflow Damage 731 | . 47 . . . 86 26 . 76 . 17 . 152 . 35 . 26 111 155 Projectiles 71 | . . . . . 45 26 . . . . . . . . . . . . Explosions 88 | . 47 . . . 41 . . . . . . . . . . . . . Melee 572 | . . . . . . . . 76 . 17 . 152 . 35 . 26 111 155 Knockbacks 24 | . 6 . . . 13 3 . . . . . . . . . . . 2 Impact 2 | . . . . . . 1 . . . . . . . . . . . 1 Kinetic 22 | . 6 . . . 13 2 . . . . . . . . . . . 1 Secondary . | . . . . . . . . . . . . . . . . . . . Self-Inflicted Damage 56 | . 17 . . . . 21 . . . . . . . . . . 1 17 Shots 1 | . 1 . . . . . . . . . . . . . . . . . Rammed 17 | . . 2 . . 5 5 . . . . . . . . . . 2 3 Targets Rammed 24 | . . 2 . . 12 5 . . . . . . . . . . 2 3 Kicked 6 | . . . . . 6 . . . . . . . . . . . . . Crushed 1 | . . . . . 1 . . . . . . . . . . . . . Highest Temperature 470 | 80 322 192 . . 470 215 193 105 . 3 432 . . . 52 113 74 440 Average Temperature 86 | 45 86 95 . . 136 57 107 43 . 2 91 . . . 20 40 23 71 Received Heat Transfer 1896 | . 186 180 . . 747 162 120 9 . 36 27 . . 9 18 63 291 48 Effects 12 | . 1 . . . 8 . . . . . 1 . . . . . . 2 Shutdowns 2 | . . . . . . . . . . . 1 . . . . . . 1 Energy Bleed 1 | . . . . . . . . . . . . . . . . . . 1 Interference 5 | . 1 . . . 4 . . . . . . . . . . . . . Matter Decay 2 | . . . . . 2 . . . . . . . . . . . . . Short Circuit 1 | . . . . . 1 . . . . . . . . . . . . . Damage (minor) 1 | . . . . . 1 . . . . . . . . . . . . . Siege Activations . | . . . . . . . . . . . . . . . . . . . Martial Activations . | . . . . . . . . . . . . . . . . . . . Shielding Activations . | . . . . . . . . . . . . . . . . . . . Robots Disrupted . | . . . . . . . . . . . . . . . . . . . Combat Hostiles . | . . . . . . . . . . . . . . . . . . . Robots Corrupted . | . . . . . . . . . . . . . . . . . . . Combat Hostiles . | . . . . . . . . . . . . . . . . . . . Parts Fried 2 | . . . . . 2 . . . . . . . . . . . . . Impact Corruptions 2 | . . . . . . . . . . . . . . . . . . 2 Robots Melted 1 | . . . . . 1 . . . . . . . . . . . . . Combat Hostiles 1 | . . . . . 1 . . . . . . . . . . . . . Parts Melted 12 | 1 2 1 . . 4 4 . . . . . . . . . . . . Heat Transferred 5920 | 222 1295 481 . . 2627 1184 74 . . . . . . . . . . 37 Parts Sabotaged . | . . . . . . . . . . . . . . . . . . . Parts Stolen . | . . . . . . . . . . . . . . . . . . . Parts Stripped . | . . . . . . . . . . . . . . . . . . . Power Chain Reactions . | . . . . . . . . . . . . . . . . . . . Alert | -11 -10 -10 -10 -9 -8 -7 -7 -7 -7 -6 -6 -5 -5 -5 -5 -4 -4 -3 ------- Run | Yrd Mat Min Exi Min Mat Fac Low Low Zio Pro Fac Fac Upp Upp War Pro Fac Res Maximum Alert Level 1 | . . . . . 1 1 . . . . 1 1 . . . . . . Low Security (%) 73 | 100 100 100 . 100 45 54 . . . . 50 89 . . . . 100 100 Level 1 26 | . . . . . 54 45 . . . . 49 10 . . . . . . Level 2 . | . . . . . . . . . . . . . . . . . . . Level 3 . | . . . . . . . . . . . . . . . . . . . Level 4 . | . . . . . . . . . . . . . . . . . . . Level 5 . | . . . . . . . . . . . . . . . . . . . High Security . | . . . . . . . . . . . . . . . . . . . Max Security . | . . . . . . . . . . . . . . . . . . . Peak Influence 334 | 15 160 75 . . 296 254 . . . . 334 224 . . . . 130 47 Initial 116 | . 3 25 . . . 113 . . . . 53 116 . . . . 34 7 Average 116 | 3 52 24 . . 186 162 . . . . 174 160 . . . . 45 2 Influence Increases 4505 | 15 367 100 . . 818 606 60 320 . 145 734 342 . 105 225 120 420 128 Destroy 0b10 Robot/C 1720 | . 220 80 . . 560 180 . 140 . 40 . 120 . 80 . 60 200 40 Destroy 0b10 Robot/NC 160 | 15 20 . . . 25 35 . . . . 20 15 . . . . 20 10 Destroy Leader 392 | . 46 20 . . 140 66 . 30 . . 8 22 . 10 . . 40 10 Allied During Kill 26 | . . . . . . 26 . . . . . . . . . . . . Trap Triggered on 0b10 10 | . . . . . . . . . . . 10 . . . . . . . Successful Hack 266 | . 18 . . . 14 81 . . . . 101 48 . . . . 4 . Disable Machine 105 | . 15 . . . 30 15 . . . . . . . . . . 30 15 Anti-Garrison Action 600 | . . . . . . 200 . . . . 400 . . . . . . . Destroy Structure 101 | . 48 . . . 34 3 . . . . . 2 . . . . 6 8 Partial Spotted 45 | . . . . . . . . . . . 15 15 . . . . 15 . Lose Combat Pursuer 1080 | . . . . . 15 . 60 150 . 105 180 120 . 15 225 60 105 45 Influence Decreases 4460 | 10 307 165 . . 568 648 255 286 47 60 580 425 88 94 277 92 460 98 Entered New Map 670 | . 2 40 . . . 137 78 4 47 . 32 123 58 14 79 27 21 8 Time Decay 2996 | 10 305 115 . . 468 431 167 272 . 50 368 262 30 80 108 30 271 29 Lost Part 486 | . . 10 . . 100 20 10 10 . 10 20 40 . . 20 35 150 61 Lost Ally 140 | . . . . . . 60 . . . . 10 . . . 70 . . . Purge Threat 168 | . . . . . . . . . . . 150 . . . . . 18 . Squads Dispatched 41 | . 2 . . . 6 7 . . . 1 8 6 . . . 1 4 6 Investigation 15 | . 2 . . . 2 2 . . . . 5 2 . . . . 1 1 Extermination 8 | . . . . . . 2 . . . . 2 1 . . . . 1 2 Reinforcement 13 | . . . . . 2 2 . . . . 1 3 . . . . 2 3 Assault 2 | . . . . . . . . . . 1 . . . . . 1 . . Garrison 3 | . . . . . 2 1 . . . . . . . . . . . . Intercept . | . . . . . . . . . . . . . . . . . . . Searches Triggered . | . . . . . . . . . . . . . . . . . . . Construction Impeded . | . . . . . . . . . . . . . . . . . . . Haulers Reinforced . | . . . . . . . . . . . . . . . . . . . Active Scanning Responses . | . . . . . . . . . . . . . . . . . . . Cargo Convoy Interrupts . | . . . . . . . . . . . . . . . . . . . Stealth | -11 -10 -10 -10 -9 -8 -7 -7 -7 -7 -6 -6 -5 -5 -5 -5 -4 -4 -3 --------- Run | Yrd Mat Min Exi Min Mat Fac Low Low Zio Pro Fac Fac Upp Upp War Pro Fac Res Distress Signals 4 | . . . . . 2 . . . . . 1 . . . 1 . . . Communications Jammed . | . . . . . . . . . . . . . . . . . . . Distress Signals . | . . . . . . . . . . . . . . . . . . . Times Spotted 270 | . 16 4 . . 40 13 4 15 . 19 17 13 . 7 38 23 34 27 Peak Tracking Total 18 | . 5 2 . . 5 2 3 4 . 12 6 5 . 3 18 16 14 17 Tactical Retreats 32 | . . . . . 1 . 3 4 . 3 3 5 . 1 4 3 4 1 Traps | -11 -10 -10 -10 -9 -8 -7 -7 -7 -7 -6 -6 -5 -5 -5 -5 -4 -4 -3 ------- Run | Yrd Mat Min Exi Min Mat Fac Low Low Zio Pro Fac Fac Upp Upp War Pro Fac Res Traps Triggered 9 | . 2 . . . 4 2 . . . . . . . . . . . 1 Indirectly . | . . . . . . . . . . . . . . . . . . . Trap Hack Attempts 16 | . . . . . . . . . . . 16 . . . . . . . Triggered . | . . . . . . . . . . . . . . . . . . . Disarmed . | . . . . . . . . . . . . . . . . . . . Reprogrammed 3 | . . . . . . . . . . . 3 . . . . . . . Reused 1 | . . . . . . . . . . . 1 . . . . . . . Traps Extracted . | . . . . . . . . . . . . . . . . . . . Installed . | . . . . . . . . . . . . . . . . . . . Triggered 1 | . . . . . . . . . . . 1 . . . . . . . Machines | -11 -10 -10 -10 -9 -8 -7 -7 -7 -7 -6 -6 -5 -5 -5 -5 -4 -4 -3 ---------- Run | Yrd Mat Min Exi Min Mat Fac Low Low Zio Pro Fac Fac Upp Upp War Pro Fac Res Machines Disabled 7 | . 1 . . . 2 1 . . . . . . . . . . 2 1 Max in Single Turn 1 | . 1 . . . 1 1 . . . . . . . . . . 1 1 Garrison Access 4 | . . . . . 1 1 . . . . 2 . . . . . . . Machines Repaired . | . . . . . . . . . . . . . . . . . . . Machines Dismantled . | . . . . . . . . . . . . . . . . . . . Machines Sabotaged . | . . . . . . . . . . . . . . . . . . . Overloaded Fab Kills . | . . . . . . . . . . . . . . . . . . . Hacking | -11 -10 -10 -10 -9 -8 -7 -7 -7 -7 -6 -6 -5 -5 -5 -5 -4 -4 -3 --------- Run | Yrd Mat Min Exi Min Mat Fac Low Low Zio Pro Fac Fac Upp Upp War Pro Fac Res Machines Accessed 74 | . 5 1 2 . 9 6 . 1 . . 25 6 . 2 11 . 4 2 Terminals 32 | . 4 1 . . 5 3 . 1 . . 11 3 . 1 . . 2 1 Fabricators 6 | . . . . . . 1 . . . . 2 2 . . . . 1 . Repair Stations 6 | . . . . . 2 1 . . . . 2 1 . . . . . . Recycling Units 7 | . 1 . . . 1 . . . . . 4 . . . . . 1 . Scanalyzers 4 | . . . . . . . . . . . 3 . . . . . . 1 Garrison Access 5 | . . . . . 1 1 . . . . 3 . . . . . . . Total Hacks 191 | . 19 2 4 . 19 17 . 1 . . 61 19 . 2 28 . 16 3 Successful 120 | . 12 1 4 . 9 8 . 1 . . 37 10 . 2 28 . 8 . Failed 71 | . 7 1 . . 10 9 . . . . 24 9 . . . . 8 3 Catastrophic 9 | . 3 . . . 1 . . . . . 3 . . . . . 2 . Database Lockouts . | . . . . . . . . . . . . . . . . . . . Manual 73 | . 16 . 1 . 15 8 . . . . 22 5 . . . . 6 . Terminals 96 | . 18 2 . . 15 10 . 1 . . 27 10 . 1 . . 10 2 Fabricators 16 | . . . . . . 1 . . . . 4 7 . . . . 4 . Repair Stations 13 | . . . . . 2 2 . . . . 7 2 . . . . . . Recycling Units 11 | . 1 . . . 1 . . . . . 7 . . . . . 2 . Scanalyzers 8 | . . . . . . . . . . . 7 . . . . . . 1 Garrison Access 14 | . . . . . 1 4 . . . . 9 . . . . . . . Terminal Hacks 56 | . 3 1 4 . 2 1 . 1 . . 8 4 . 2 28 . 2 . Record 38 | . . 1 3 . . . . 1 . . 4 2 . 1 26 . . . Open Door 3 | . . . . . . . . . . . . . . 1 2 . . . Open DSF 1 | . . . . . . . . . . . 1 . . . . . . . Branch Access Points 3 | . . . . . 1 1 . . . . 1 . . . . . . . Fabricator Index 1 | . . . . . . . . . . . . 1 . . . . . . Alert Level 2 | . . . . . 1 . . . . . 1 . . . . . . . Unreport Threat 2 | . . . . . . . . . . . 1 . . . . . 1 . Locate Traps 3 | . 2 . . . . . . . . . . . . . . . 1 . Zone Layout 2 | . 1 . . . . . . . . . . 1 . . . . . . Proto ID Catalog 1 | . . . 1 . . . . . . . . . . . . . . . Fabricator Hacks 7 | . . . . . . 1 . . . . 3 2 . . . . 1 . Load Schematic 4 | . . . . . . . . . . . 1 2 . . . . 1 . Build 3 | . . . . . . 1 . . . . 2 . . . . . . . Repair Station Hacks 7 | . . . . . . 2 . . . . 3 2 . . . . . . Scan Component 4 | . . . . . . 1 . . . . 2 1 . . . . . . Repair 3 | . . . . . . 1 . . . . 1 1 . . . . . . Recycling Unit Hacks 10 | . 1 . . . 1 . . . . . 6 . . . . . 2 . Report Inventory 5 | . . . . . . . . . . . 4 . . . . . 1 . Retrieve Components 5 | . 1 . . . 1 . . . . . 2 . . . . . 1 . Scanalyzer 6 | . . . . . . . . . . . 6 . . . . . . . Insert Component 3 | . . . . . . . . . . . 3 . . . . . . . Analyze 3 | . . . . . . . . . . . 3 . . . . . . . Garrison Access Hacks 1 | . . . . . 1 . . . . . . . . . . . . . Seal Access 1 | . . . . . 1 . . . . . . . . . . . . . Unauthorized Hacks 33 | . 8 . . . 5 4 . . . . 11 2 . . . . 3 . Terminals 29 | . 8 . . . 4 3 . . . . 9 2 . . . . 3 . Assimilate 2 | . 1 . . . . . . . . . . . . . . . 1 . Botnet 17 | . 3 . . . 2 3 . . . . 7 1 . . . . 1 . Operators 1 | . 1 . . . . . . . . . . . . . . . . . Skim 9 | . 3 . . . 2 . . . . . 2 1 . . . . 1 . Fabricators . | . . . . . . . . . . . . . . . . . . . Repair Stations 1 | . . . . . 1 . . . . . . . . . . . . . Patch 1 | . . . . . 1 . . . . . . . . . . . . . Recycling Units . | . . . . . . . . . . . . . . . . . . . Scanalyzers . | . . . . . . . . . . . . . . . . . . . Garrison Access 3 | . . . . . . 1 . . . . 2 . . . . . . . Jam 3 | . . . . . . 1 . . . . 2 . . . . . . . Data Cores Recovered 3 | . . . . . . . . . . . . 1 . . . . 1 1 Used . | . . . . . . . . . . . . . . . . . . . Hacking Detections 47 | . 5 1 . . 6 4 . . . . 21 5 . . . . 3 2 Full Trace Events 9 | . 3 . . . . . . . . . 3 2 . . . . 1 . Feedback Events 1 | . . . . . . . . . . . 1 . . . . . . . Corruption 1 | . . . . . . . . . . . 1 . . . . . . . Feedback Blocked . | . . . . . . . . . . . . . . . . . . . Robot Schematics Acquired . | . . . . . . . . . . . . . . . . . . . Robots Built 4 | . . . . . . 3 . . . . 1 . . . . . . . Authchips . | . . . . . . . . . . . . . . . . . . . Time 88 | . . . . . . 38 . . . . 50 . . . . . . . Total Robot Build Rating 14 | . . . . . . 9 . . . . 5 . . . . . . . Part Schematics Acquired 1 | . . . . . . . . . . . 1 . . . . . . . Parts Built 2 | . . . . . . . . . . . 2 . . . . . . . Authchips . | . . . . . . . . . . . . . . . . . . . Time 42 | . . . . . . . . . . . 42 . . . . . . . Total Part Build Rating 8 | . . . . . . . . . . . 8 . . . . . . . Parts Repaired 3 | . . . . . . 1 . . . . 1 1 . . . . . . Time 60 | . . . . . . 19 . . . . 22 19 . . . . . . Parts Recycled . | . . . . . . . . . . . . . . . . . . . Recycled Matter . | . . . . . . . . . . . . . . . . . . . Retrieved Matter . | . . . . . . . . . . . . . . . . . . . Retrieved Components 17 | . . . . . 10 . . . . . 4 . . . . . 3 . Parts Scanalyzed 2 | . . . . . . . . . . . 2 . . . . . . . Part Schematics Acquired 1 | . . . . . . . . . . . 1 . . . . . . . Parts Damaged . | . . . . . . . . . . . . . . . . . . . Bothacking | -11 -10 -10 -10 -9 -8 -7 -7 -7 -7 -6 -6 -5 -5 -5 -5 -4 -4 -3 ------------ Run | Yrd Mat Min Exi Min Mat Fac Low Low Zio Pro Fac Fac Upp Upp War Pro Fac Res Used RIF Installer . | . . . . . . . . . . . . . . . . . . . Robots Hacked 2 | . . . . . . . . . . . . . . . 2 . . . Non-combat . | . . . . . . . . . . . . . . . . . . . Combat 2 | . . . . . . . . . . . . . . . 2 . . . Robot Hacks Applied 2 | . . . . . . . . . . . . . . . 2 . . . parse_system 2 | . . . . . . . . . . . . . . . 2 . . . Relay Couplers Released . | . . . . . . . . . . . . . . . . . . . Fabnet Peak Effective % . | . . . . . . . . . . . . . . . . . . . Robots Rewired 5 | . . . . . . . . . . . . . . . 5 . . . Allies Hacked . | . . . . . . . . . . . . . . . . . . . Hacks Repelled . | . . . . . . . . . . . . . . . . . . . Allies | -11 -10 -10 -10 -9 -8 -7 -7 -7 -7 -6 -6 -5 -5 -5 -5 -4 -4 -3 -------- Run | Yrd Mat Min Exi Min Mat Fac Low Low Zio Pro Fac Fac Upp Upp War Pro Fac Res Total Allies 9 | . . . . . . 3 . . . . 1 . . . 5 . . . Largest Group 5 | . . . . . . 3 . . . . 1 . . . 5 . . . Highest-Rated Group 276 | . . . . . . 48 . . . . 23 . . . 276 . . . Highest-Rated Ally 64 | . . . . . . 16 . . . . 23 . . . 64 . . . Total Orders 1 | . . . . . . . . . . . . . . . 1 . . . AID 1 | . . . . . . . . . . . . . . . 1 . . . Ally Attacks 39 | . . . . . . 34 . . . . . . . . 5 . . . Total Damage 544 | . . . . . . 315 . . . . . . . . 229 . . . Kills 2 | . . . . . . 2 . . . . . . . . . . . . Allies Corrupted 1 | . . . . . . 1 . . . . . . . . . . . . Allies Melted 1 | . . . . . . . . . . . . . . . 1 . . . Intel | -11 -10 -10 -10 -9 -8 -7 -7 -7 -7 -6 -6 -5 -5 -5 -5 -4 -4 -3 ------- Run | Yrd Mat Min Exi Min Mat Fac Low Low Zio Pro Fac Fac Upp Upp War Pro Fac Res Active Infowar (turns) 1750 | 7 1054 . . . 30 . . . . . 248 2 . . . . . 409 Sensors 795 | . 765 . . . 30 . . . . . . . . . . . . . Terrain 705 | 7 289 . . . . . . . . . . . . . . . . 409 Decoding 88 | . . . . . . . . . . . 88 . . . . . . . Triangulation 160 | . . . . . . . . . . . 160 . . . . . . . ECM 2 | . . . . . . . . . . . . 2 . . . . . . Robot Analysis Total . | . . . . . . . . . . . . . . . . . . . Derelict Logs Recovered 6 | . . . . . . . 1 1 1 1 . . 1 1 . . . . Drone Launches . | . . . . . . . . . . . . . . . . . . . Drone Recoveries . | . . . . . . . . . . . . . . . . . . . Decoded 0b10 Intel 1 | . . . . . . . . . . . 1 . . . . . . . Items 1 | . . . . . . . . . . . 1 . . . . . . . Exploration | -11 -10 -10 -10 -9 -8 -7 -7 -7 -7 -6 -6 -5 -5 -5 -5 -4 -4 -3 ------------- Run | Yrd Mat Min Exi Min Mat Fac Low Low Zio Pro Fac Fac Upp Upp War Pro Fac Res Turns Passed 11231 | 93 1055 398 581 162 1714 1110 465 729 1252 201 853 564 78 177 406 137 662 594 Spaces Moved 11273 | 48 506 214 363 99 854 828 370 680 1043 259 1514 1291 257 399 1182 313 501 552 Core 12 | 6 . . . . . . . . . . . 3 . . . . 3 . Treads 1688 | 42 506 214 363 99 411 . . . . . . . . . . . 53 . Legs 282 | . . . . . 282 . . . . . . . . . . . . . Wheels 2669 | . . . . . 161 828 370 680 630 . . . . . . . . . Hover 541 | . . . . . . . . . . . . . . . . . 177 364 Flight 6081 | . . . . . . . . . 413 259 1514 1288 257 399 1182 313 268 188 Fastest Speed 23 | 50 160 160 160 160 115 100 100 100 100 27 24 23 27 27 27 27 27 32 Average Speed 74 | 146 160 160 160 160 139 100 102 100 109 48 24 25 27 27 27 29 102 54 Slowest Speed 675 | 160 160 160 160 160 260 115 115 115 190 110 106 195 27 27 107 114 675 106 Overloaded Moves 105 | . . . . . . . . . . . . . . . . . . 105 Propulsion Burnouts . | . . . . . . . . . . . . . . . . . . . Robots Hopped 28 | . . . . . . . . . . 8 3 2 . 1 3 2 1 8 Potential Cave-ins 7 | . . . . . . . . . . . . . . . 7 . . . Cave-ins Triggered . | . . . . . . . . . . . . . . . . . . . Exploration Rate (%) 47 | 4 82 42 73 24 52 19 50 85 81 45 47 15 42 49 95 61 16 20 Regions Visited 18 Branch Regions 11 Pre-discovered Areas 2 | . . . 1 . . . . 1 . . . . . . . . . . Known Exits Taken 16 | . 1 1 1 1 1 1 1 1 1 1 1 1 1 1 1 . 1 . Unknown Exits Taken 2 | 1 . . . . . . . . . . . . . . . 1 . . Scrap Searched 13 | . . 1 . . . . 2 2 4 3 . . . 1 . . . . Spaces Dug 5 | . . . . . . . . . . . . . . . . 3 2 . Terrain Destroyed 96 | . 50 . . . 32 3 . . . . . 1 . . . 3 3 4 Melee . | . . . . . . . . . . . . . . . . . . . Projectile 26 | . . . . . 12 3 . . . . . 1 . . . 3 3 4 AOE 70 | . 50 . . . 20 . . . . . . . . . . . . . Terrain Rammed . | . . . . . . . . . . . . . . . . . . . Walls Destroyed . | . . . . . . . . . . . . . . . . . . . Machines Disabled . | . . . . . . . . . . . . . . . . . . . Actions | -11 -10 -10 -10 -9 -8 -7 -7 -7 -7 -6 -6 -5 -5 -5 -5 -4 -4 -3 --------- Run | Yrd Mat Min Exi Min Mat Fac Low Low Zio Pro Fac Fac Upp Upp War Pro Fac Res Total 13462 | 61 668 241 364 103 1187 1036 419 713 1158 322 1985 1496 264 460 1263 345 589 788 Wait 1410 | . 103 5 . 5 162 128 20 13 89 44 388 143 8 46 55 15 9 177 Move 11204 | 47 505 213 362 98 853 827 369 679 1042 244 1507 1286 256 396 1176 309 498 537 Hop 23 | . . . . . . . . . . 6 3 2 . 1 2 1 1 7 Pick Up 78 | 3 6 1 1 . 13 10 2 2 6 3 10 6 . 1 3 . 5 6 Fast Attach 99 | 6 . . . . 15 3 1 1 7 1 8 12 . . 1 4 25 15 Attach 70 | 1 . 1 . . 14 4 4 3 2 7 8 7 . 1 2 3 3 10 Detach 30 | . . . . . . . 1 . 1 6 7 6 . . 2 3 2 2 Swap 70 | . 11 1 . . 23 4 2 2 1 2 16 3 . 2 . . 3 . Drop 87 | . 2 1 1 . 14 10 . . 10 4 17 10 . 2 3 1 7 5 Fire 224 | 4 41 17 . . 81 37 20 . . . . 2 . . 1 3 11 7 Melee 119 | . . . . . . . . 13 . 5 5 19 . 11 18 6 23 19 Ram 10 | . . . . . . 5 . . . . . . . . . . 2 3 Kick 6 | . . . . . 6 . . . . . . . . . . . . . Crush 8 | . . 2 . . 6 . . . . . . . . . . . . . Escape Stasis 8 | . . . . . . 8 . . . . . . . . . . . . Rewire . | . . . . . . . . . . . . . . . . . . . Trap 16 | . . . . . . . . . . . 16 . . . . . . . Miscellaneous . | . . . . . . . . . . . . . . . . . . . Route ------- -11/Scrapyard -10/Materials (discovered 5 exits: *Mat x3 / *Min / *Sub) -10/Mines (discovered 4 exits: *Mat x2 / *Exi / *Sub) -10/Exiles -9/Mines -8/Materials -7/Factory (discovered 5 exits: *Fac / Sto x2 / *Low x2) -7/Lower Caves -7/Lower Caves (discovered 2 exits: *Fac / *Zio) -7/Zion -6/Proximity Caves -6/Factory (discovered 4 exits: *Fac x2 / *Low x2) -5/Factory -5/Upper Caves -5/Upper Caves -5/Warlord -4/Proximity Caves -4/Factory (discovered 2 exits: *Res x2) -3/Research (discovered 1 exit: [*Qua]) History --------- Turn | Location | Event 4 | -11/Scrapyard | Discovered new exit (range 15) 94 | -11/Scrapyard | Entered Materials 310 | -10/Materials | Build established: Mutant 328 | -10/Materials | Discovered new exit (range 12) 562 | -10/Materials | Discovered new exit (range 13) 728 | -10/Materials | Discovered new exit (range 14) 847 | -10/Materials | Discovered new exit (range 7) 1113 | -10/Materials | Discovered new exit (range 10) 1149 | -10/Materials | Identified exit to Mines 1149 | -10/Materials | Entered Mines 1272 | -10/Mines | Discovered new exit (range 6) 1283 | -10/Mines | Identified exit to Materials 1451 | -10/Mines | Discovered new exit (range 10) 1454 | -10/Mines | Discovered exit to Materials (range 11) 1466 | -10/Mines | Identified exit to Subcaves 1539 | -10/Mines | Deemed a non-threat by the Exiles lab entrance 1541 | -10/Mines | Discovered new exit (range 5) 1546 | -10/Mines | Identified exit to Exiles 1547 | -10/Mines | Entered Exiles 1586 | -10/Exiles | Met 8R-AWN 1613 | -10/Exiles | Met EX-HEX 1695 | -10/Exiles | Met EX-BIN 1714 | -10/Exiles | Aligned with FarCom system 1715 | -10/Exiles | Given EX-Vault access code 1763 | -10/Exiles | Opened EX-Vault 1775 | -10/Exiles | Found Longsword +1 1807 | -10/Exiles | Warned to stay clear of 0b10 Research branches 1858 | -10/Exiles | Met EX-DEC 1888 | -10/Exiles | Learned location of Zion (-7) 2109 | -10/Exiles | Discovered new exit (range 14) 2127 | -10/Exiles | Identified exit to Mines 2128 | -10/Exiles | Left Exiles lab with Longsword +1 2128 | -10/Exiles | Entered Mines 2282 | -9/Mines | Discovered new exit (range 5) 2289 | -9/Mines | Identified exit to Materials 2290 | -9/Mines | Entered Materials 2290 | -8/Materials | Evolved 4 slots: Propulsion x1, Utility x2, Weapon x1 2542 | -8/Materials | Destroyed 7 combat bots 2585 | -8/Materials | Garrison activated, responded to threat 3063 | -8/Materials | Build established: Skirmisher 3246 | -8/Materials | Garrison activated, responded to threat 3471 | -8/Materials | Discovered new exit (range 7) 3490 | -8/Materials | Identified exit to Factory 4004 | -8/Materials | Entered Factory 4004 | -7/Factory | Evolved 2 slots: Propulsion x1, Utility x1 4067 | -7/Factory | Discovered new exit (range 5) 4071 | -7/Factory | Identified exit to Factory 4128 | -7/Factory | Repaired Assault Cannon 4410 | -7/Factory | Fabricated G-47 Trooper (x3) 4879 | -7/Factory | Identified exit to Storage 4879 | -7/Factory | Identified exit to Lower Caves 4887 | -7/Factory | Lost 3 allies 4920 | -7/Factory | Build established: Hacker-Skirmisher 5114 | -7/Factory | Entered Lower Caves 5245 | -7/Lower Caves | Learned Factory emergency access door positions 5378 | -7/Lower Caves | Spotted B-75 Beast 5435 | -7/Lower Caves | Lost 4 parts (1p1u2w) 5527 | -7/Lower Caves | Lost 4 parts (2n2w) 5567 | -7/Lower Caves | Discovered new exit (range 7) 5578 | -7/Lower Caves | Identified exit to Lower Caves 5579 | -7/Lower Caves | Entered another Lower Caves area 5680 | -7/Lower Caves | Build established: Hacker-Mutant 5736 | -7/Lower Caves | Discovered exit to Factory (range 11) 6248 | -7/Lower Caves | Learned location of Extension (-5) 6282 | -7/Lower Caves | Discovered new exit (range 11) 6285 | -7/Lower Caves | Encountered a Warlord checkpoint 6292 | -7/Lower Caves | Identified exit to Zion 6308 | -7/Lower Caves | Entered Zion 6350 | -7/Zion | System corruption cleaned by Quarantine Array 6474 | -7/Zion | Discovered new exit (range 10) 6483 | -7/Zion | Identified exit to Proximity Caves 6584 | -7/Zion | Given A8's code to call for help 6608 | -7/Zion | Found Prototype Processor 6608 | -7/Zion | Identified Exp. Terrain Scan Processor 6613 | -7/Zion | Found Prototype Processor 6613 | -7/Zion | Identified Exp. Armor Integrity Analyzer 6616 | -7/Zion | Found Prototype Processor 6616 | -7/Zion | Identified Spectral Analyzer 6619 | -7/Zion | Found Prototype Processor 6619 | -7/Zion | Identified Exp. Signal Interpreter 6623 | -7/Zion | Found Prototype Processor 6623 | -7/Zion | Identified Exp. Core Analyzer 6628 | -7/Zion | Found Exp. Armor Integrity Analyzer 6838 | -7/Zion | Found Prototype Device 7006 | -7/Zion | Learned Factory trap positions 7253 | -7/Zion | Found CR-A16's Pointy Stick 7309 | -7/Zion | Rebuked by Imprinter 7560 | -7/Zion | Entered Proximity Caves 7564 | -6/Proximity Caves | Learned Factory terminal intel 7670 | -6/Proximity Caves | Core integrity fell below 50% 7679 | -6/Proximity Caves | Identified Mobile Refinery Mk. CCLXVII 7709 | -6/Proximity Caves | Attracted the attention of an 0b10 outpost 7760 | -6/Proximity Caves | Discovered exit to Factory (range 5) 7761 | -6/Proximity Caves | Entered Factory 7761 | -6/Factory | Evolved 2 slots: Propulsion x1, Utility x1 7762 | -6/Factory | Loaded intel: 100 trap records 7764 | -6/Factory | Loaded intel: 25 terminal locations 7804 | -6/Factory | Found Prototype Launcher 7806 | -6/Factory | Identified Rocket Array 7891 | -6/Factory | Discovered new exit (range 7) 7893 | -6/Factory | Identified exit to Factory 7986 | -6/Factory | Fabricated M-22 Extractor (x1) 8118 | -6/Factory | Repaired Mic. Nuclear Core 8220 | -6/Factory | Discovered new exit (range 4) 8221 | -6/Factory | Identified exit to Lower Caves 8382 | -6/Factory | Fabricated Xenon Bombardment Thruster? 8389 | -6/Factory | Build established: Scavenger-Sprinter 8605 | -6/Factory | Discovered exit to Factory (range 15) 8614 | -6/Factory | Entered another Factory area 8614 | -5/Factory | Evolved 2 slots: Power x1, Utility x1 8666 | -5/Factory | Discovered new exit (range 16) 8672 | -5/Factory | Identified exit to Upper Caves 8723 | -5/Factory | Lost 4 parts (3n1u) 8867 | -5/Factory | Repaired Imp. Propulsion Shielding 9178 | -5/Factory | Entered Upper Caves 9222 | -5/Upper Caves | Learned Factory stockpile data 9246 | -5/Upper Caves | Encountered a Warlord checkpoint 9252 | -5/Upper Caves | Discovered new exit (range 7) 9254 | -5/Upper Caves | Identified exit to Upper Caves 9256 | -5/Upper Caves | Entered another Upper Caves area 9259 | -5/Upper Caves | Encountered a Warlord checkpoint 9291 | -5/Upper Caves | Learned 4 Factory zone layouts 9393 | -5/Upper Caves | Spotted B-75 Beast 9429 | -5/Upper Caves | Discovered new exit (range 15) 9433 | -5/Upper Caves | Identified exit to Warlord 9433 | -5/Upper Caves | Entered Warlord 9478 | -5/Warlord | Learned Armory repair station intel 9478 | -5/Warlord | Learned Armory recycling unit intel 9478 | -5/Warlord | Learned Research fabricator intel 9478 | -5/Warlord | Learned Research recycling unit intel 9479 | -5/Warlord | Learned Testing emergency access door positions 9480 | -5/Warlord | Met Warlord 9505 | -5/Warlord | Warlord's base attacked by MAIN.C 9541 | -5/Warlord | Found Prototype Energy Cannon 9541 | -5/Warlord | Identified Vortex Cannon 9544 | -5/Warlord | Found Vortex Cannon 9599 | -5/Warlord | Opened side exit 9717 | -5/Warlord | Spotted B-75 Beast 9773 | -5/Warlord | P-70 Sage assimilated allied TH-291(Y) 9798 | -5/Warlord | Warlord forces counterattacked 9803 | -5/Warlord | Spotted B-86 Titan 9809 | -5/Warlord | Discovered new exit (range 8) 9809 | -5/Warlord | Spotted Striker 9834 | -5/Warlord | Spotted Executioner 9835 | -5/Warlord | Spotted Executioner 9839 | -5/Warlord | Identified exit to Proximity Caves 9839 | -5/Warlord | Entered Proximity Caves 9869 | -4/Proximity Caves | Lost 13 allies 9886 | -4/Proximity Caves | Attracted the attention of an 0b10 checkpoint 9922 | -4/Proximity Caves | Spotted B-86 Titan 9969 | -4/Proximity Caves | Attracted the attention of an 0b10 outpost 9973 | -4/Proximity Caves | Discovered new exit (range 10) 9976 | -4/Proximity Caves | Lost 4 parts (1p2n1u) 9976 | -4/Proximity Caves | Entered Factory 9976 | -4/Factory | Evolved 2 slots: Propulsion x1, Utility x1 9977 | -4/Factory | Identified exit to Research 10078 | -4/Factory | Core integrity fell below 50% 10117 | -4/Factory | Destroyed 9 combat bots 10122 | -4/Factory | Lost 12 parts (2p5n4u1w) 10207 | -4/Factory | Discovered exit to Research (range 11) 10290 | -4/Factory | Lost 3 parts (1p2n) 10562 | -4/Factory | Build established: Mutant 10605 | -4/Factory | Core integrity fell below 20% 10638 | -4/Factory | Entered Research 10638 | -3/Research | Evolved 2 slots: Power x1, Utility x1 10639 | -3/Research | Loaded intel: 3 fabricator locations 10640 | -3/Research | Loaded intel: 5 recycling unit locations 10650 | -3/Research | Lost 3 parts (2n1u) 11116 | -3/Research | System corruption reached 10% 11146 | -3/Research | Core integrity fell below 50% 11188 | -3/Research | Core integrity fell below 20% 11227 | -3/Research | Lost 24 parts (3p7n8u6w) 11232 | -3/Research | Discovered new exit (range 15) 11232 | -3/Research | Destroyed by G-67 Veteran with Field Laser Last Messages --------------- 11163_ Penetrated by Slug. 11163_ Imp. Gyrokinetic Inverter destroyed. 11165_ P-80 Master resets P-80 Master, system corruption cleaned. 11167_ PVN34N6PLE8SPUSF1&YWO 11168_ Slug penetrates Antiparticle Reservoir. 11175_ Scanalyzer disabled. 11182_ Subatomic Condenser disabled. 11183_ Imp. Gyrokinetic Inverter destroyed. 11184_ System corrupted: Heat flow error (+262). 11187_ Critical hit (Burn: +37). 11196_ Impulse Thruster destroyed. 11199_ System corrupted: Matter fused (-7). 11211_ ALERT: Hostiles spotted, dispatching reinforcements to Terminal R020. 11223_ S9TELPBR=ARUY&STGTHEDWQIFR2&UYB